Cogmind - Beta 13 @@@ ROGUE MODE // 2024.08.05 @ 02:37:34 // Winter2019/RPGLIKE Player: badjay Result: Destroyed by D-53 Grenadier with Mini Grenade Launcher Performance ------------- Evolutions (0) 0 Regions Visited (2) 400 Robots Destroyed (4) 20 Value Destroyed (64) 64 Prototype IDs (7) 140 Alien Tech Used (0) 0 Bonus (0) 0 TOTAL SCORE: 624 Bonus ------- None Cogmind --------- Core Integrity 0/600 Matter 300/300 Energy 123/125 System Corruption 3% Temperature Cool (0) Movement Core (50) Location -10/Mines Parts ------- > --- POWER (1) -------- Light Ion Engine > --- PROPULSION (1) --- (None) > --- UTILITY (1) ------ Targeting Computer > --- WEAPON (1) ------- (None) > --- INVENTORY (0) ---- (None) Peak State ------------ > --- POWER ------------ Light Ion Engine > --- PROPULSION ------- Flight Unit > --- UTILITY ---------- (None) > --- WEAPON ----------- EM Pulse Gun > --- INVENTORY -------- (None) [Rating: 3] Favorites ----------- Power Light Ion Engine Engine Light Ion Engine Propulsion Flight Unit Flight Unit Flight Unit Utility Targeting Computer Processor Targeting Computer Weapon EM Pulse Gun Energy Gun EM Pulse Gun Build | -11 -10 -10 ------- Run | Yrd Mat Min Slots Evolved . | . . . Power . | . . . Propulsion . | . . . Utility . | . . . Weapon . | . . . Parts Attached 4 | 1 3 . Power 1 | . 1 . Engine 1 | . 1 . Core . | . . . Reactor . | . . . Propulsion 1 | . 1 . Treads . | . . . Leg . | . . . Wheel . | . . . Hover . | . . . Flight 1 | . 1 . Utility 1 | . 1 . Device . | . . . Storage . | . . . Processor 1 | . 1 . Hackware . | . . . Protection . | . . . Artifact . | . . . Weapon 1 | 1 . . Energy Gun 1 | 1 . . Energy Cannon . | . . . Ballistic Gun . | . . . Ballistic Cannon . | . . . Launcher . | . . . Special Weapon . | . . . Impact Weapon . | . . . Slashing Weapon . | . . . Piercing Weapon . | . . . Special Melee Weapon . | . . . Unidentified Prototypes . | . . . Corrupted Parts 1 | . 1 . System Corruption 2 | . 2 . Parts Lost 2 | . 2 . Power . | . . . Propulsion 1 | . 1 . Utility . | . . . Weapon 1 | . 1 . Highest Loss Streak 1 | . 1 . To Critical Strikes . | . . . Average Slot Usage (%) 40 | . 39 50 Engine 13 | . 11 25 Flight 7 | . 9 . Processor 7 | . 4 25 Energy Gun 11 | . 14 . Naked Turns . | . . . Heaviest Build 5 | 2 5 3 Greatest Support 9 | 3 9 8 Greatest Overweight (x) . | . . . Average Overweight (x) . | . . . Largest Inventory Capacity . | . . . Average Capacity . | . . . Most Carried . | . . . Average Carried . | . . . Final Capacity . | . . . Final Carried . | . . . Class Distribution -------------------- 100% | Hacker-Mutant Dominant Class ---------------- Hacker-Mutant | -10/Materials Hacker-Mutant | -10/Mines Resources | -11 -10 -10 ----------- Run | Yrd Mat Min Matter Collected 231 | 146 85 . Remotely . | . . . Salvage Created 147 | . 147 . Parts 9 | . 9 . Haulers Intercepted . | . . . Recyclers Shooed . | . . . Parts Field Recycled . | . . . Retrieved Matter . | . . . Parts Self-Destructed . | . . . Prevented . | . . . Kills | -11 -10 -10 ------- Run | Yrd Mat Min Combat Hostiles Destroyed 4 | . 4 . Guns 4 | . 4 . Classes Destroyed 2 | . 2 . Swarmer 3 | . 3 . Grunt 1 | . 1 . Best Kill Streak 4 | . 4 . Combat Bots Only 4 | . 4 . Max Kills in Single Turn 1 | . 1 . Gunslinging . | . . . Exploded . | . . . Melee . | . . . Uniques/NPCs Destroyed . | . . . Combat | -11 -10 -10 -------- Run | Yrd Mat Min Hostile Shots Fired 73 | . 68 5 Missed 24 | . 22 2 Damage Taken 699 | . 595 104 Core 612 | . 511 101 Absorbed by Shields . | . . . Redirected to Core 282 | . 272 10 Core Remaining (%) 100 | 100 . . Volleys Fired 17 | . 17 . Largest 1 | . 1 . Hottest 40 | . 40 . Shots Fired 17 | . 17 . Gun 17 | . 17 . Cannon . | . . . Launcher . | . . . Special . | . . . Kinetic . | . . . Thermal . | . . . Explosive . | . . . Electromagnetic 17 | . 17 . Robot Hit Streak 3 | . 3 . Robot Miss Streak 2 | . 2 . Penetration Max . | . . . Secondary Targets . | . . . Shots Hit Robots 9 | . 9 . Core Hits 6 | . 6 . Critical Kills . | . . . Critical Parts Destroyed . | . . . Critical Strikes 1 | . 1 . Corrupt 1 | . 1 . Melee Attacks . | . . . Impact . | . . . Slashing . | . . . Piercing . | . . . Sneak Attacks . | . . . Combat Hostiles . | . . . Follow-up Attacks . | . . . Damage Inflicted 147 | . 147 . Guns 119 | . 119 . Cannons . | . . . Explosions . | . . . Melee . | . . . Ramming 28 | . 28 . Kinetic . | . . . Thermal . | . . . Explosive . | . . . Electromagnetic 119 | . 119 . Impact . | . . . Slashing . | . . . Piercing . | . . . Highest Corruption 3 | . 3 3 Average Corruption 2 | . 2 3 Corruption Purged . | . . . Corruption Blocked . | . . . Effects 2 | . 2 . Matter Fused 1 | . 1 . Data Loss (major) 1 | . 1 . Overload Shots . | . . . Overflow Damage . | . . . Projectiles . | . . . Explosions . | . . . Melee . | . . . Knockbacks . | . . . Impact . | . . . Kinetic . | . . . Secondary . | . . . Self-Inflicted Damage 12 | . 12 . Shots . | . . . Rammed 5 | . 5 . Targets Rammed 5 | . 5 . Kicked . | . . . Crushed . | . . . Highest Temperature 15 | . 15 . Average Temperature 6 | . 6 . Received Heat Transfer 231 | . 225 6 Siege Activations . | . . . Robots Corrupted . | . . . Combat Hostiles . | . . . Parts Fried . | . . . Impact Corruptions . | . . . Robots Melted . | . . . Combat Hostiles . | . . . Parts Melted . | . . . Heat Transferred . | . . . Parts Sabotaged . | . . . Parts Stolen . | . . . Parts Stripped . | . . . Power Chain Reactions . | . . . Alert | -11 -10 -10 ------- Run | Yrd Mat Min Peak Influence 218 | . 218 62 Initial 47 | . . 47 Average 70 | . 77 50 Maximum Alert Level 1 | . 1 . Low Security (%) 94 | 100 92 100 Level 1 5 | . 7 . Level 2 . | . . . Level 3 . | . . . Level 4 . | . . . Level 5 . | . . . High Security . | . . . Max Security . | . . . Squads Dispatched . | . . . Investigation . | . . . Extermination . | . . . Reinforcement . | . . . Assault . | . . . Garrison . | . . . Intercept . | . . . Searches Triggered . | . . . Construction Impeded . | . . . Haulers Reinforced . | . . . Active Scanning Responses . | . . . Cargo Convoy Interrupts . | . . . Stealth | -11 -10 -10 --------- Run | Yrd Mat Min Distress Signals 1 | . 1 . Communications Jammed . | . . . Distress Signals . | . . . Times Spotted 22 | . 16 6 Peak Tracking Total 6 | . 5 6 Tactical Retreats 3 | . 3 . Traps | -11 -10 -10 ------- Run | Yrd Mat Min Traps Triggered . | . . . Indirectly . | . . . Trap Hack Attempts . | . . . Triggered . | . . . Disarmed 6 | . 6 . Reprogrammed . | . . . Reused . | . . . Traps Extracted . | . . . Installed . | . . . Triggered . | . . . Machines | -11 -10 -10 ---------- Run | Yrd Mat Min Machines Disabled . | . . . Max in Single Turn . | . . . Machines Repaired . | . . . Machines Dismantled . | . . . Machines Sabotaged . | . . . Overloaded Fab Kills . | . . . Hacking | -11 -10 -10 --------- Run | Yrd Mat Min Machines Accessed 8 | . 8 . Terminals 8 | . 8 . Fabricators . | . . . Repair Stations . | . . . Recycling Units . | . . . Scanalyzers . | . . . Garrison Access . | . . . Total Hacks 64 | . 64 . Successful 42 | . 42 . Failed 21 | . 21 . Catastrophic . | . . . Database Lockouts 1 | . 1 . Manual 50 | . 50 . Terminals 64 | . 64 . Fabricators . | . . . Repair Stations . | . . . Recycling Units . | . . . Scanalyzers . | . . . Garrison Access . | . . . Terminal Hacks 31 | . 31 . Robot Analysis 1 | . 1 . Prototype ID Bank 7 | . 7 . Level Access Points 1 | . 1 . Branch Access Points 1 | . 1 . Emergency Access Points 1 | . 1 . Terminal Index 1 | . 1 . Alert Level 3 | . 3 . Unreport Threat 1 | . 1 . Locate Traps 1 | . 1 . Disarm Traps 1 | . 1 . Dispatch Records 1 | . 1 . Maintenance Status 1 | . 1 . Surveillance Status 1 | . 1 . Assault Status 1 | . 1 . Garrison Status 1 | . 1 . Hauler Manifests 2 | . 2 . Registered Components 1 | . 1 . Registered Prototypes 1 | . 1 . Zone Layout 4 | . 4 . Fabricator Hacks . | . . . Repair Station Hacks . | . . . Recycling Unit Hacks . | . . . Scanalyzer . | . . . Garrison Access Hacks . | . . . Unauthorized Hacks 11 | . 11 . Terminals 11 | . 11 . Track 1 | . 1 . Assimilate 2 | . 2 . Botnet 5 | . 5 . Disrupt 2 | . 2 . Operators 1 | . 1 . Fabricators . | . . . Repair Stations . | . . . Recycling Units . | . . . Scanalyzers . | . . . Garrison Access . | . . . Data Cores Recovered . | . . . Used . | . . . Hacking Detections 8 | . 8 . Full Trace Events . | . . . Feedback Events . | . . . Feedback Blocked . | . . . Robot Schematics Acquired . | . . . Robots Built . | . . . Authchips . | . . . Time . | . . . Total Robot Build Rating . | . . . Part Schematics Acquired . | . . . Parts Built . | . . . Authchips . | . . . Time . | . . . Total Part Build Rating . | . . . Parts Repaired . | . . . Time . | . . . Parts Recycled . | . . . Recycled Matter . | . . . Retrieved Matter . | . . . Retrieved Components . | . . . Parts Scanalyzed . | . . . Part Schematics Acquired . | . . . Parts Damaged . | . . . Bothacking | -11 -10 -10 ------------ Run | Yrd Mat Min Used RIF Installer . | . . . Robots Hacked . | . . . Non-combat . | . . . Combat . | . . . Robot Hacks Applied . | . . . Relay Couplers Released . | . . . Fabnet Peak Effective % . | . . . Robots Rewired . | . . . Allies Hacked . | . . . Hacks Repelled . | . . . Allies | -11 -10 -10 -------- Run | Yrd Mat Min Total Allies 2 | . 2 . Largest Group 1 | . 1 . Highest-Rated Group 10 | . 10 . Highest-Rated Ally 10 | . 10 . Total Orders . | . . . Ally Attacks . | . . . Total Damage . | . . . Kills . | . . . Allies Corrupted . | . . . Allies Melted . | . . . Intel | -11 -10 -10 ------- Run | Yrd Mat Min Robot Analysis Total 1 | . 1 . Derelict Logs Recovered . | . . . Drone Launches . | . . . Drone Recoveries . | . . . Exploration | -11 -10 -10 ------------- Run | Yrd Mat Min Turns Passed 369 | 12 299 58 Spaces Moved 505 | 22 369 114 Core 271 | 22 135 114 Treads . | . . . Legs . | . . . Wheels . | . . . Hover . | . . . Flight 234 | . 234 . Fastest Speed 40 | 50 40 50 Average Speed 45 | 50 43 50 Slowest Speed 50 | 50 50 50 Overloaded Moves . | . . . Propulsion Burnouts . | . . . Robots Hopped 1 | . 1 . Cave-ins Triggered . | . . . Exploration Rate (%) 32 | 3 74 21 Regions Visited 2 Branch Regions 1 Pre-discovered Areas . | . . . Known Exits Taken 1 | . 1 . Unknown Exits Taken 1 | 1 . . Scrap Searched 1 | . . 1 Spaces Dug . | . . . Terrain Destroyed . | . . . Melee . | . . . Projectile . | . . . AOE . | . . . Terrain Rammed . | . . . Walls Destroyed . | . . . Machines Disabled . | . . . Actions | -11 -10 -10 --------- Run | Yrd Mat Min Total 623 | 22 486 115 Wait 95 | . 94 1 Move 501 | 21 366 114 Hop 1 | . 1 . Pick Up . | . . . Fast Attach 4 | 1 3 . Attach . | . . . Detach . | . . . Swap . | . . . Drop . | . . . Fire 17 | . 17 . Melee . | . . . Ram 5 | . 5 . Kick . | . . . Crush . | . . . Escape Stasis . | . . . Rewire . | . . . Trap . | . . . Miscellaneous . | . . . Route ------- -11/Scrapyard -10/Materials (discovered 5 exits: *Mat x3 / *Min x2) -10/Mines History --------- Turn | Location | Event 7 | -11/Scrapyard | Discovered new exit (range 14) 13 | -11/Scrapyard | Entered Materials 181 | -10/Materials | Core integrity fell below 50% 210 | -10/Materials | Discovered new exit (range 15) 255 | -10/Materials | Central database locked down 255 | -10/Materials | Identified exit to Mines 255 | -10/Materials | Identified exit to Materials 296 | -10/Materials | Core integrity fell below 20% 309 | -10/Materials | Build established: Hacker-Mutant 312 | -10/Materials | Entered Mines 317 | -10/Mines | Assembled infested the area 370 | -10/Mines | Destroyed by D-53 Grenadier with Mini Grenade Launcher Last Messages --------------- 00310_ T-07 Excavator is excavating. 00311_ K-01 Serf collects debris. LOCATION=MINES GOAL=ESCAPE Something is scanning the area. 00317_ ALERT: Infestation in the mines, dispatching Demolisher response squad. 00346_ A derelict emerges from the shadows. 00347_ MA-WGY(g): "Some of my friends down here think you need a mining laser when you travel the depths." 00348_ MA-WGY(g): "You know what I say? NO!" 00352_ Searching scrap... 00352_ Found Lgt. Assault Rifle. 00352_ Found Hcp. Battery. 00352_ Found Sml. Laser. 00352_ Found 18 Matter. 00369_ C-30 ARC bursts open, deploying its payload. 00369_ D-53 Grenadier unfolds itself. Map ----- +----------------------------------------------------+ | ??????????????????????????????????????????????? | | ??????????????????????????????????????????????? | | ??????????????????????????????????????????????? | | ??????????????????????????????????????????????? | | ??????????????????????????????????????????????? | | ??????????????????????????????????????????????? | | ??????????????????????????????????????????????? | | ??????????????????????????????????????????????? | | ??????????????????????????????????????????????? | | ??????????????????????????????????????????????? | | ????????????????????????????????????????###???? | | ???????????????????????????????????????# ##??? | | ????????????????????????????????####### ##?? | | ????????????????????????######### #?? | | ????????????????????????#[! #?? | | ????????????????????????#%####### ### #?? | | ????????????????????????#[#?????# #?# ##?? | | ????????????????????????# #?????# #?## ##??? | | ????????????????????????# #???### #???####???? | | ????????????????????????# #?### #??????????? | | ???????????????????????## ### #??????????? | | ??????????????????????## ## ###???????? | | ??????????????????????# ### ##??????? | | ??????????????????????## #### #??????? | | ??????????????????????# ##??## #??????? | | ?????????????????????## @ ####### ##?????? | | ?????????????????????# ### ##????? | | ?????????????????????# #?# #????? | | ?????????????????????# #### ### #????? | | ????????????????????# ##??# #???? | | ???????????????????# gg #???# #### #??? | | ???????????????????# #???# ##?## #??? | | ???????????????????# dd #??## ##?## ##??? | | ???????????????????# % ##### #???#####???? | | ??????????????????# ## ##??????????? | | ????????????????? % #?# ## """ #??????????? | | ?????????????????# #??# ## """ #??????????? | | ?????????????????## #### ## """ #??????????? | | ??????????????????## #??????????? | | ???????????????????# ####### #??????????? | | ????????????????????????????## #??????????? | | ?????????????????????????????## ##?????????? | | ??????????????????????????????## ##????????? | | ???????????????????????????????# #????????? | | ???????????????????????????????## #????????? | | ???????????????????????????????## ##????????? | | ?????????????????????????????### ##?????????? | | ????????????????????????????## ##?????????? | | ????????????????????????????# ##????????? | | ???????????????????????????## #????????? | +----------------------------------------------------+ Best States ------------- Heat Dissipation 25 Energy Generation 10 Energy Capacity 125 Matter Stores 300 Matter Capacity 300 Sight Range 16 Terrain Scan Density 10 Evasion (%) 62 Targeting Accuracy 5 Offensive Hacking 20 Defensive Hacking 10 Item Schematics ----------------- None Robot Schematics ------------------ None Fabricated ------------ Nothing Alien Tech Used ----------------- None Achievements -------------- None Challenges ------------ None RPGLIKE | -11 -10 -10 --------- Run | Yrd Mat Min Levels Raised . | . . . XP Earned 4090 | 3000 590 500 XP Spent 2800 | . 2800 . Upgrades 7 | . 7 . Mass Support 1 | . 1 . Hack Attack % 4 | . 4 . Hack Defense % 2 | . 2 . Protomatter Created . | . . . Protomatter Decayed 28 | . . 28 Game ------ Seed StorageThermicDiverter Manual? 0 Play Time 00:08:49 Cumulative 156.9 hours Start 2024.08.05 @ 02:28:35 End 2024.08.05 @ 02:37:34 Sessions 1 Manual Loads 0 Difficulty Rogue Special Mode Winter2019/RPGLIKE Game No. 158 Rogue 158 Adventurer 0 Explorer 0 Win Type - Total 13 Types 11/0/0/1/0/0/1/0/0 Lore% 64 Gallery% 65 Achievement% 67 Wizard Run 0 Options --------- Layout 1 ASCII 0 Keyboard 0 Movement Numpad Keybinds 0 Fullscreen 1 Font 24/Smallcaps Map View 50x35 Zoom Use 0% Tactical HUD 1 Map Filters NONE Filters NONE Steam 1 RUN: bd280343-7297-42aa-8d66-ea4009280a16